bitfinex/quotes_SOLUSD_20240824
["timestamp","ask_amount","ask_price","bid_price","bid_amount"]
[1724539821247,10.88651416,159.39,159.32,6.2801]
[1724539821746,10.88651416,159.37,159.29,15.7152]
[1724539822242,10.88651416,159.37,159.29,23.03518142]
[1724539823023,10.88651416,159.37,159.3,20.0]
[1724539823226,10.88651416,159.37,159.35,6.2754]
[1724539824924,10.88651416,159.37,159.34,6.2758]
[1724539825131,6.2739,159.39,159.34,6.2758]
[1724539825132,10.88651416,159.35,159.34,6.2758]
[1724539830738,10.88651416,159.35,159.3,20.0]
[1724539830950,10.88651416,159.35,159.29,20.0]
[1724539833333,10.88651416,159.31,159.29,6.2775]
[1724539833530,10.88651416,159.31,159.3,6.2774]
[1724539835539,10.88651416,159.31,159.24,6.2801]
[1724539835740,10.88651416,159.31,159.22,7.32825765]
[1724539835941,10.88651416,159.29,159.21,23.04345765]
[1724539836856,10.88651416,159.29,159.28,6.2781]
[1724539837057,10.88651416,159.29,159.21,15.7152]
[1724539837241,10.88651416,159.27,159.25,6.279]
[1724539837856,10.88651416,159.27,159.26,6.279]
[1724539839041,26.23151416,159.29,159.26,6.279]
[1724539839243,26.23151416,159.29,159.25,6.2794]
[1724539839463,10.88651416,159.27,159.25,6.2794]
[1724539841344,10.88651416,159.27,159.17,16.0738]
[1724539841554,10.88651416,159.25,159.18,20.0]
[1724539843272,10.88651416,159.28,159.24,6.2798]
[1724539844354,10.88651416,159.28,159.25,6.2791]
[1724539844559,15.345,159.29,159.2,1.25593614]
[1724539844874,15.345,159.29,159.2,20.0]
[1724539845572,15.345,159.29,159.25,6.2793]
[1724539846074,28.1662,159.33,159.21,17.37751416]
[1724539846247,10.88651416,159.31,159.27,6.2785]
[1724539846746,10.88651416,159.29,159.27,6.2785]
[1724539846952,10.88651416,159.29,159.26,6.279]
[1724539850179,6.2767,159.32,159.26,6.279]
[1724539850180,10.88651416,159.31,159.26,6.279]
[1724539850368,10.88651416,159.31,159.29,6.2778]
[1724539850680,26.23151416,159.33,159.23,1.25570229]
[1724539850864,45.0,159.32,159.23,1.25570229]
[1724539851382,26.23151416,159.33,159.29,6.2774]
[1724539851866,26.23151416,159.33,159.24,26.96031416]
[1724539852051,26.23151416,159.33,159.31,6.2769]
[1724539852452,10.88651416,159.35,159.31,6.2769]
[1724539853263,45.0,159.34,159.31,6.2769]
[1724539853793,10.88651416,159.33,159.3,6.2774]
[1724539854084,45.0,159.34,159.3,6.2774]
[1724539855868,45.0,159.34,159.31,6.2769]
[1724539858493,10.88651416,159.33,159.31,6.2769]
[1724539859485,10.88651416,159.33,159.3,6.2773]
[1724539865785,10.88651416,159.31,159.25,1.57124033]
[1724539865986,10.88651416,159.29,159.21,6.491]
[1724539866206,10.88651416,159.27,159.25,6.279]
[1724539867004,10.88651416,159.27,159.26,6.279]
[1724539872113,10.88651416,159.27,159.24,6.2795]
[1724539872808,10.88651416,159.26,159.24,6.2795]
[1724539875602,10.88651416,159.26,159.23,6.2801]
[1724539875908,10.88651416,159.24,159.23,6.2801]
[1724539879905,10.88651416,159.24,159.22,6.2806]
[1724539880106,10.88651416,159.24,159.17,6.194]
[1724539880308,10.88651416,159.24,159.18,20.0]
[1724539880687,10.88651416,159.22,159.18,20.0]
[1724539881321,10.88651416,159.22,159.17,20.0]
[1724539882916,10.88651416,159.22,159.21,6.281]
[1724539886634,10.88651416,159.22,159.16,0.8155703]
[1724539886926,10.88651416,159.2,159.17,6.2822]
[1724539887719,10.88651416,159.2,159.18,6.282]
[1724539889033,10.88651416,159.2,159.17,6.2825]
[1724539891735,10.88651416,159.2,159.16,0.8155703]
[1724539891736,10.88651416,159.2,159.18,6.282]
[1724539894513,10.88651416,159.22,159.18,6.282]
[1724539894829,10.88651416,159.22,159.2,6.2813]
[1724539895534,10.88651416,159.24,159.21,6.281]
[1724539896130,10.88651416,159.24,159.2,6.2813]
[1724539900431,10.88651416,159.22,159.2,6.2813]
[1724539901237,10.88651416,159.22,159.18,6.2818]
[1724539901421,10.88651416,159.2,159.18,6.2818]
[1724539904428,10.88651416,159.2,159.17,6.2825]
[1724539905025,10.88651416,159.18,159.16,0.8155703]
[1724539909339,45.0,159.17,159.16,0.8155703]
[1724539912539,16.1615,159.19,159.16,0.8155703]
[1724539912743,6.2808,159.22,159.16,0.8155703]
[1724539912744,10.88651416,159.22,159.16,0.8155703]
[1724539912925,10.88651416,159.22,159.2,6.2813]
[1724539913917,15.7378,159.24,159.23,6.2802]
[1724539914121,10.88651416,159.26,159.22,6.2805]
[1724539915247,45.0,159.25,159.22,6.2805]
[1724539916151,45.0,159.25,159.21,6.2809]
[1724539916858,15.7378,159.29,159.17,1.25624638]
[1724539917031,10.88651416,159.27,159.18,28.32583566]
[1724539917231,10.88651416,159.27,159.19,20.0]
[1724539917529,26.62431416,159.29,159.25,6.2794]
[1724539918324,15.7378,159.29,159.26,6.2788]
[1724539919446,22.28053492,159.33,159.29,6.2777]
[1724539919642,15.7378,159.33,159.29,6.2777]
[1724539920160,15.7378,159.33,159.3,6.2774]
[1724539920328,15.7378,159.33,159.24,27.06981416]
[1724539920329,6.54190713,159.38,159.26,10.88651416]
[1724539920523,10.88651416,159.34,159.27,20.0]
[1724539920763,10.88651416,159.32,159.29,6.2776]
[1724539921059,10.88651416,159.3,159.29,6.2776]
[1724539921363,10.88651416,159.3,159.27,6.2786]
[1724539921657,10.88651416,159.28,159.26,6.279]
[1724539922958,10.88651416,159.28,159.25,6.2794]
[1724539923262,10.88651416,159.27,159.25,6.2793]
[1724539923631,55.88651416,159.29,159.25,6.2793]
[1724539926348,10.88651416,159.27,159.25,6.2793]
[1724539926556,10.88651416,159.27,159.24,6.2797]
[1724539926738,10.88651416,159.25,159.24,6.2797]
[1724539926938,10.88651416,159.25,159.22,6.2803]
[1724539927138,10.88651416,159.23,159.22,6.2803]
[1724539927469,10.88651416,159.25,159.23,6.2801]
[1724539930946,10.88651416,159.25,159.18,6.3111]
[1724539931268,10.88651416,159.22,159.19,6.2816]
[1724539931567,10.88651416,159.22,159.2,6.2813]
[1724539931738,10.88651416,159.22,159.16,0.8155703]
[1724539932952,55.88651416,159.24,159.16,0.8155703]
[1724539933152,55.88651416,159.24,159.2,6.2812]
[1724539934067,55.88651416,159.24,159.21,6.2809]
[1724539950858,10.88651416,159.26,159.18,2.82845588]
[1724539951055,15.7378,159.27,159.23,6.2802]
[1724539952301,45.0,159.26,159.23,6.2802]
[1724539957201,55.88651416,159.26,159.23,6.2802]
[1724539958394,45.0,159.26,159.23,6.2802]
[1724539958717,55.88651416,159.26,159.23,6.2802]
[1724539959171,45.0,159.26,159.23,6.2802]
[1724539959373,45.0,159.26,159.24,6.2797]
[1724539961610,45.0,159.26,159.23,6.2802]
[1724539963687,10.88651416,159.27,159.24,6.2795]
[1724539967586,15.0994,159.29,159.26,6.2789]
[1724539967783,12.7053,159.32,159.27,6.2782]
[1724539967987,10.88651416,159.32,159.28,6.2782]
[1724539968219,10.88651416,159.32,159.29,6.2776]
[1724539968406,15.0994,159.33,159.29,6.2776]
[1724539969702,45.0,159.32,159.29,6.2776]
[1724539971417,15.0994,159.37,159.34,6.2758]
[1724539971623,32.26071416,159.37,159.32,6.2762]
[1724539971924,10.88651416,159.35,159.32,6.2762]
[1724539975289,10.88651416,159.35,159.25,16.91151416]
[1724539975493,10.88651416,159.33,159.3,6.277]
[1724539975931,45.0,159.34,159.3,6.277]
[1724539976296,45.0,159.34,159.25,16.91151416]
[1724539976636,45.0,159.34,159.31,6.277]
[1724539976928,45.0,159.35,159.31,6.277]
[1724539978619,45.0,159.35,159.26,20.0]
[1724539979135,45.0,159.35,159.28,16.5231]
[1724539979319,45.0,159.36,159.29,1.25533692]
[1724539979827,6.5315281,159.4,159.31,6.3315]
[1724539980035,6.5315281,159.4,159.32,21.25506304]
[1724539980036,17.41804226,159.4,159.32,21.25506304]
[1724539980207,6.2284,159.44,159.33,10.88651416]
[1724539980405,17.15891416,159.43,159.33,10.88651416]
[1724539980640,10.88651416,159.41,159.32,20.0]
[1724539980846,10.88651416,159.43,159.32,30.88651416]
[1724539981009,10.88651416,159.43,159.34,27.40961416]
[1724539981205,10.88651416,159.43,159.35,20.0]
[1724539982643,10.88651416,159.41,159.35,20.0]
[1724539983140,10.88651416,159.39,159.34,16.5231]
[1724539983439,10.88651416,159.39,159.31,6.3315]
[1724539985120,10.88651416,159.38,159.32,20.0]
[1724539988030,10.88651416,159.36,159.32,20.0]
[1724539989546,10.88651416,159.34,159.27,6.287]
[1724539990129,10.88651416,159.36,159.28,1.25538267]
[1724539990328,45.0,159.35,159.28,1.25538267]
[1724539990534,45.0,159.35,159.27,6.287]
[1724539990725,45.0,159.35,159.28,20.0]
[1724539991565,45.0,159.35,159.28,21.25539467]
[1724539991746,45.0,159.35,159.28,20.0]
[1724539992726,10.88651416,159.34,159.28,20.0]
[1724539993365,10.88651416,159.32,159.23,6.0222]
[1724539994571,10.88651416,159.3,159.23,6.0222]
[1724539996659,10.88651416,159.3,159.24,20.0]
[1724539999364,10.88651416,159.28,159.24,20.0]
[1724539999672,10.88651416,159.28,159.23,20.0]
[1724540000349,10.88651416,159.28,159.2,20.0]
[1724540001487,6.2771,159.31,159.2,30.88651416]
[1724540001774,45.0,159.3,159.22,10.88651416]
[1724540001983,45.0,159.3,159.23,1.25576175]
[1724540002176,45.0,159.3,159.23,21.25576175]
[1724540002486,45.0,159.3,159.23,20.0]
[1724540002853,55.88651416,159.3,159.23,20.0]
[1724540003559,45.0,159.3,159.23,20.0]
[1724540003752,55.88651416,159.3,159.23,20.0]
[1724540004071,10.88651416,159.28,159.21,20.0]
[1724540004270,10.88651416,159.28,159.2,20.0]
[1724540018709,10.88651416,159.28,159.21,20.0]
[1724540018710,45.0,159.27,159.21,20.0]
[1724540018901,45.0,159.27,159.19,20.0]
[1724540018902,26.14601416,159.26,159.19,20.0]
[1724540019481,26.14601416,159.26,159.18,20.0]
[1724540022002,26.14601416,159.26,159.16,33.23771813]
[1724540024103,10.88651416,159.24,159.16,20.8155703]
[1724540025490,10.88651416,159.24,159.16,0.8155703]
[1724540026196,45.0,159.23,159.16,0.8155703]
[1724540028402,45.0,159.23,159.16,2.38776364]
[1724540028708,10.88651416,159.22,159.16,2.38776364]
[1724540028913,10.88651416,159.22,159.16,0.8155703]
[1724540030403,16.0247,159.21,159.16,0.8155703]
[1724540033345,55.88651416,159.2,159.16,0.8155703]
[1724540038644,55.88651416,159.2,159.16,2.38787059]
[1724540038947,55.88651416,159.2,159.16,0.8155703]
[1724540039119,55.88651416,159.2,159.16,2.38787059]
[1724540039319,55.88651416,159.2,159.16,0.8155703]
[1724540039517,10.88651416,159.18,159.16,0.8155703]
[1724540039744,45.0,159.17,159.16,0.8155703]
[1724540040133,10.88651416,159.18,159.16,0.8155703]
[1724540042223,45.0,159.17,159.16,0.8155703]
[1724540042824,67.2891,159.17,159.11,1.57230029]
[1724540043033,10.88651416,159.15,159.06,4.43491057]
[1724540043359,10.88651416,159.15,159.07,4.43491057]
[1724540043651,10.88651416,159.15,159.08,1.57230029]
[1724540043832,10.88651416,159.15,159.09,1.57230029]
[1724540044027,10.88651416,159.15,159.1,1.57230029]
[1724540044233,10.88651416,159.15,159.11,1.57230029]
[1724540044436,10.88651416,159.15,159.07,1.57230029]
[1724540044627,10.88651416,159.15,159.08,1.57230029]
[1724540044826,10.88651416,159.15,159.09,1.57230029]
[1724540045021,10.88651416,159.15,159.1,1.57230029]
[1724540045220,10.88651416,159.15,159.07,1.57230029]
[1724540045425,67.2891,159.17,159.09,10.88651416]
[1724540045628,67.2891,159.17,159.1,21.57230029]
[1724540045840,67.2891,159.17,159.11,1.57230029]
[1724540046660,67.2891,159.17,159.09,4.43455697]
[1724540046954,67.2891,159.17,159.1,1.57230029]
[1724540047254,67.2891,159.17,159.11,1.57230029]
[1724540047454,67.2891,159.17,159.09,2.86225668]
[1724540047658,67.2891,159.17,159.1,1.57262688]
[1724540047949,67.2891,159.17,159.11,1.57262688]
[1724540048157,67.2891,159.17,159.1,1.57262688]
[1724540048329,67.2891,159.17,159.11,1.57262688]
[1724540048529,67.2891,159.17,159.1,1.57262688]
[1724540048752,67.2891,159.17,159.11,1.57262688]
[1724540048936,67.2891,159.17,159.1,1.57262688]
[1724540049129,67.2891,159.17,159.11,1.57262688]
[1724540049355,67.2891,159.17,159.1,1.57262688]
[1724540049657,67.2891,159.17,159.11,1.57262688]
[1724540049953,67.2891,159.17,159.1,1.57262688]
[1724540050158,67.2891,159.17,159.11,1.57262688]
[1724540050329,67.2891,159.17,159.08,20.0]
[1724540050659,67.2891,159.17,159.09,4.43798666]
[1724540050833,67.2891,159.17,159.09,2.8653599]
[1724540052640,10.88651416,159.16,159.09,2.8653599]
[1724540057477,10.88651416,159.16,159.08,20.0]
[1724540057645,10.88651416,159.16,159.09,2.86366112]
[1724540058480,22.2891,159.17,159.09,13.75017528]
[1724540058650,22.2891,159.17,159.1,21.25659955]
[1724540058651,15.9961,159.17,159.1,21.25659955]
[1724540058855,15.9961,159.17,159.11,1.25660224]
[1724540059053,15.9961,159.17,159.1,20.0]
[1724540063243,15.9961,159.17,159.11,55.88651416]
[1724540063450,15.9961,159.17,159.12,20.0]
[1724540063849,6.1889,159.21,159.12,20.0]
[1724540063850,22.7422,159.21,159.13,12.1429589]
[1724540064052,22.7422,159.21,159.14,20.0]
[1724540064253,22.7422,159.21,159.15,1.25632733]
[1724540064649,22.7422,159.21,159.16,1.25630221]
[1724540064650,16.5533,159.21,159.16,1.25630221]
[1724540064850,16.5533,159.21,159.16,21.25630221]
[1724540066257,16.5533,159.21,159.16,20.0]
[1724540067582,16.5533,159.21,159.14,10.88651416]
[1724540067767,16.5533,159.21,159.15,20.0]
[1724540068462,16.5533,159.21,159.15,21.25619359]
[1724540068890,16.5533,159.21,159.16,10.88651416]
[1724540069093,16.5533,159.21,159.17,21.25614331]
[1724540069266,16.5533,159.21,159.17,20.0]
[1724540070272,17.07541416,159.25,159.17,20.0]
[1724540070577,17.07541416,159.25,159.18,1.25604302]
[1724540070578,33.62871416,159.25,159.18,1.25604302]
[1724540070973,33.62871416,159.25,159.17,20.0]
[1724540072499,10.88651416,159.23,159.17,20.0]
[1724540072672,10.88651416,159.23,159.15,20.0]
[1724540076373,33.62871416,159.25,159.15,20.0]
[1724540076710,22.7422,159.25,159.15,20.0]
[1724540076997,33.62871416,159.25,159.15,20.0]
[1724540080482,10.88651416,159.23,159.15,20.0]
[1724540080801,10.88651416,159.23,159.14,20.0]
[1724540085995,10.88651416,159.23,159.13,21.49892739]
[1724540086881,10.88651416,159.23,159.13,32.38544155]
[1724540093598,10.88651416,159.23,159.14,11.81679677]
[1724540093823,10.88651416,159.23,159.15,20.0]
[1724540094007,10.88651416,159.23,159.16,4.52614971]
[1724540095631,10.88651416,159.23,159.14,20.0]
[1724540096292,10.88651416,159.23,159.15,4.52514237]
[1724540097427,10.88651416,159.23,159.15,5.78140808]
[1724540097734,10.88651416,159.23,159.16,20.0]
[1724540097902,10.88651416,159.23,159.15,4.52514237]
[1724540098304,10.88651416,159.23,159.14,20.0]
[1724540099736,10.88651416,159.23,159.15,4.52814801]
[1724540100236,10.88651416,159.23,159.14,27.29386423]
[1724540100442,10.88651416,159.23,159.14,20.0]
[1724540102502,10.88651416,159.23,159.15,1.25587113]
[1724540103629,33.62871416,159.25,159.16,1.25550426]
[1724540103814,45.0,159.24,159.17,1.25542537]
[1724540104015,33.62871416,159.25,159.17,1.25542537]
[1724540104226,22.7422,159.25,159.17,10.88651416]
[1724540104430,22.7422,159.25,159.18,20.0]
[1724540104606,22.7422,159.25,159.19,1.25605221]
[1724540107269,22.7422,159.25,159.18,20.0]
[1724540108345,33.62871416,159.25,159.18,20.0]
[1724540108544,33.62871416,159.25,159.17,20.0]
[1724540111037,22.7422,159.25,159.17,20.0]
[1724540116275,33.62871416,159.25,159.17,20.0]
[1724540116439,33.62871416,159.25,159.13,1.49892739]
[1724540116630,33.62871416,159.25,159.15,10.88651416]
[1724540116829,33.62871416,159.25,159.16,20.0]
[1724540118836,22.7422,159.25,159.19,10.88651416]
[1724540119046,22.7422,159.25,159.2,20.0]
[1724540119763,22.7422,159.25,159.18,20.0]
[1724540124965,22.7422,159.25,159.19,2.85669356]
[1724540125188,22.7422,159.25,159.2,2.85669356]
[1724540125371,22.7422,159.25,159.21,2.85669356]
[1724540125574,22.7422,159.25,159.19,2.85669356]
[1724540125777,22.7422,159.25,159.18,20.0]
[1724540125778,22.7422,159.25,159.2,2.85669356]
[1724540125955,22.7422,159.25,159.21,2.85669356]
[1724540126147,22.7422,159.25,159.19,2.85669356]
[1724540126468,22.7422,159.25,159.2,2.85669356]
[1724540126665,22.7422,159.25,159.17,22.85669356]
[1724540126851,22.7422,159.25,159.18,2.85669356]
[1724540127046,22.7422,159.25,159.19,2.85669356]
[1724540127270,22.7422,159.25,159.2,2.85669356]
[1724540127470,22.7422,159.25,159.18,2.85669356]
[1724540127652,22.7422,159.25,159.19,2.85762112]
[1724540127848,22.7422,159.25,159.2,2.85762112]
[1724540128068,22.7422,159.25,159.18,2.85771683]
[1724540128566,22.7422,159.25,159.17,20.0]
[1724540129073,22.7422,159.25,159.18,1.25562306]
[1724540129867,22.7422,159.25,159.17,20.0]
[1724540134147,22.7422,159.25,159.16,10.88651416]
[1724540134349,22.7422,159.25,159.17,20.0]
[1724540135176,10.88651416,159.24,159.17,20.0]
[1724540135367,15.006,159.22,159.13,32.41531327]
[1724540135750,15.006,159.22,159.15,10.88651416]
[1724540135951,15.006,159.22,159.16,21.25615228]
[1724540136482,15.006,159.22,159.17,10.88651416]
[1724540136679,15.006,159.22,159.18,21.25599445]
[1724540137192,15.006,159.22,159.19,10.88651416]
[1724540137402,15.006,159.22,159.2,20.0]
[1724540137703,15.006,159.22,159.18,20.0]
[1724540138957,15.006,159.22,159.16,10.88651416]
[1724540139166,15.006,159.22,159.17,20.0]
[1724540141086,15.006,159.22,159.13,30.88651416]
[1724540142469,15.006,159.22,159.15,10.88651416]
[1724540142793,15.006,159.22,159.16,20.0]
[1724540150410,15.006,159.22,159.17,10.88651416]
[1724540150613,15.006,159.22,159.18,20.0]
[1724540153701,15.006,159.22,159.16,20.0]
[1724540154185,15.006,159.22,159.14,10.88651416]
[1724540154512,15.006,159.22,159.15,20.0]
[1724540155709,15.006,159.22,159.14,20.0]
[1724540156290,15.006,159.22,159.12,1.51306506]
[1724540156491,15.006,159.22,159.13,10.88651416]
[1724540157284,6.4554,159.2,159.13,10.88651416]
[1724540157500,16.6214,159.19,159.13,10.88651416]
[1724540157689,16.6214,159.19,159.14,20.0]
[1724540162404,16.6214,159.19,159.14,10.88651416]
[1724540162605,16.6214,159.19,159.15,20.0]
[1724540169733,16.6214,159.19,159.16,10.88651416]
[1724540170028,16.6214,159.19,159.17,20.0]
[1724540170250,16.6214,159.23,159.18,10.88651416]
[1724540170447,16.6214,159.23,159.19,20.0]
[1724540170906,16.6214,159.23,159.19,30.88651416]
[1724540179413,16.6214,159.23,159.2,1.25440447]
[1724540179817,16.6214,159.23,159.19,30.88651416]
[1724540182532,16.6214,159.23,159.2,1.25600575]
[1724540184739,15.4329,159.28,159.21,10.88651416]
[1724540185025,15.4329,159.28,159.22,20.0]
[1724540185224,4.83842295,159.27,159.22,20.0]
[1724540185446,15.4329,159.28,159.22,20.0]
[1724540187136,45.0,159.27,159.22,20.0]
[1724540187351,45.0,159.27,159.2,20.0]
[1724540188733,45.0,159.27,159.21,2.85683091]
[1724540189732,45.0,159.27,159.21,13.74334507]
[1724540189932,45.0,159.27,159.22,20.0]
[1724540194447,15.4329,159.28,159.24,20.0]
[1724540194644,15.4329,159.28,159.24,21.25516867]
[1724540195765,15.4329,159.28,159.24,20.0]
[1724540196663,15.4329,159.28,159.23,10.88651416]
[1724540196850,15.4329,159.28,159.24,20.0]
[1724540198456,15.4329,159.28,159.25,1.25564302]
[1724540199261,15.4329,159.28,159.24,20.0]
[1724540201065,15.4329,159.28,159.23,10.88651416]
[1724540201277,15.4329,159.28,159.24,20.0]
[1724540208974,15.4329,159.28,159.21,20.0]
[1724540209266,15.4329,159.28,159.22,2.85408194]
[1724540210549,15.4329,159.28,159.22,13.7405961]
[1724540210755,15.4329,159.28,159.23,20.0]
[1724540211472,15.4329,159.28,159.22,10.88651416]
[1724540211776,15.4329,159.28,159.23,20.0]
[1724540215153,15.4329,159.28,159.24,2.85412712]
[1724540219974,15.4329,159.28,159.24,2.85516359]
[1724540220186,15.4329,159.28,159.19,21.52184762]
[1724540220360,15.4329,159.28,159.21,10.88651416]
[1724540220671,15.4329,159.28,159.22,20.0]
[1724540226984,15.4329,159.28,159.2,10.88651416]
[1724540227197,15.4329,159.28,159.21,20.0]
[1724540230975,6.6003,159.25,159.13,259.8]
[1724540231204,6.6003,159.25,159.18,10.88651416]
[1724540232190,6.6003,159.25,159.19,20.0]
[1724540232388,6.6003,159.25,159.2,10.88651416]
[1724540232708,6.6003,159.25,159.21,20.0]
[1724540235484,6.6003,159.25,159.22,0.48499672]
[1724540236209,16.4655,159.26,159.22,11.37881428]
[1724540236396,16.4655,159.26,159.23,20.0]
[1724540236898,16.4655,159.26,159.24,5.02226402]
[1724540237105,16.4655,159.26,159.24,0.49223828]
[1724540237308,16.4655,159.26,159.24,5.58078071]
[1724540238093,16.4655,159.26,159.24,4.52966954]
[1724540238901,16.4655,159.26,159.24,5.58025264]
[1724540240499,16.4655,159.26,159.24,1.0505831]
[1724540242620,16.4655,159.26,159.23,20.0]
[1724540245025,16.4655,159.26,159.13,6.4827]
[1724540245329,16.4655,159.26,159.18,10.88651416]
[1724540245486,16.4655,159.26,159.19,20.0]
[1724540248320,27.35201416,159.26,159.17,30.88651416]
[1724540248619,6.3978,159.24,159.17,30.88651416]
[1724540252628,15.4509,159.23,159.17,30.88651416]
[1724540257548,15.4509,159.23,159.12,43.54605664]
[1724540257716,55.88651416,159.22,159.1,6.0013]
[1724540257904,45.0,159.22,159.15,10.88651416]
[1724540258098,15.4509,159.23,159.17,10.88651416]
[1724540258305,15.4509,159.23,159.18,1.25612929]
[1724540259126,15.4509,159.23,159.18,21.25612929]
[1724540259427,15.4509,159.23,159.19,20.0]
[1724540259627,15.4509,159.23,159.2,1.25612451]
[1724540260628,15.4509,159.23,159.19,1.25612989]
[1724540264931,15.4509,159.23,159.18,20.0]
[1724540269514,15.4509,159.23,159.14,32.43297767]
[1724540269713,45.0,159.22,159.14,32.43297767]
[1724540271235,45.0,159.22,159.14,30.88651416]
[1724540271608,45.0,159.22,159.14,20.0]
[1724540271813,15.4509,159.21,159.13,6.45758231]
[1724540272009,45.0,159.2,159.13,6.45758231]
[1724540272647,6.3816,159.19,159.13,6.45758231]
[1724540273443,6.3816,159.19,159.14,20.0]
[1724540274039,6.3816,159.19,159.12,10.88651416]
[1724540274040,6.3816,159.19,159.13,20.0]
[1724540278840,6.3816,159.19,159.14,1.25640901]
[1724540279015,6.3816,159.19,159.15,1.25644189]
[1724540280050,6.3816,159.19,159.14,1.25645058]
[1724540280231,6.3816,159.19,159.13,20.0]
[1724540286820,6.3816,159.19,159.14,2.85668091]
[1724540290218,6.3816,159.19,159.15,0.97629355]
[1724540290538,15.4509,159.21,159.15,23.83219863]
[1724540290737,15.4509,159.21,159.15,20.97629355]
[1724540292358,15.4509,159.21,159.15,20.0]
[1724540294662,26.74721416,159.19,159.1,10.88651416]
[1724540294829,26.74721416,159.19,159.11,2.85663559]
[1724540295460,26.74721416,159.19,159.09,2.85663559]
[1724540295628,26.74721416,159.19,159.1,2.85663559]
[1724540295829,26.74721416,159.19,159.09,1.50213894]
[1724540296024,10.88651416,159.19,159.1,2.85742035]
[1724540296255,10.88651416,159.17,159.1,2.85742035]
[1724540296465,45.0,159.16,159.06,259.8]
[1724540296762,22.0057,159.14,159.06,259.8]
[1724540297249,22.0057,159.14,159.09,10.88651416]
[1724540298861,22.0057,159.14,159.1,20.0]
[1724540303265,22.0057,159.14,159.08,20.0]
[1724540304153,22.0057,159.14,159.09,10.88651416]
[1724540304360,22.0057,159.14,159.1,20.0]
[1724540304568,22.0057,159.14,159.11,1.25677072]
[1724540305376,15.8607,159.14,159.11,10.88651416]
[1724540305568,15.8607,159.14,159.12,20.0]
[1724540310887,15.8607,159.14,159.1,20.0]
[1724540311278,15.8607,159.14,159.1,10.88651416]
[1724540311481,15.8607,159.14,159.11,20.0]
[1724540313883,22.6423,159.18,159.12,10.88651416]
[1724540314066,22.6423,159.18,159.14,10.88651416]
[1724540314379,22.6423,159.18,159.15,20.0]
[1724540314576,16.3146,159.18,159.15,21.25643909]
[1724540315563,16.3146,159.18,159.15,20.0]
[1724540315871,16.3146,159.18,159.11,10.88651416]
[1724540316084,16.3146,159.18,159.12,20.0]
[1724540319898,16.3146,159.18,159.12,30.88651416]
[1724540331524,16.3146,159.18,159.14,10.88651416]
[1724540331724,16.3146,159.18,159.15,20.0]
[1724540333326,16.3146,159.18,159.16,10.88651416]
[1724540333527,16.3146,159.18,159.17,20.0]
[1724540335002,21.4172,159.22,159.17,20.0]
[1724540335198,21.4172,159.22,159.18,10.88651416]
[1724540335446,15.3689,159.22,159.2,10.88651416]
[1724540335616,15.3689,159.26,159.21,20.0]
[1724540335928,15.3689,159.26,159.22,10.88651416]
[1724540345839,15.3689,159.26,159.23,20.0]
[1724540347635,15.8175,159.3,159.23,20.0]
[1724540348038,15.8175,159.3,159.24,10.88651416]
[1724540349550,15.8175,159.3,159.26,10.88651416]
[1724540349744,6.2758,159.35,159.28,10.88651416]
[1724540349745,15.8175,159.34,159.28,10.88651416]
[1724540349944,15.8175,159.34,159.3,10.88651416]
[1724540350129,15.8175,159.34,159.31,1.25484537]
[1724540350328,15.8175,159.34,159.31,21.25484537]
[1724540350528,15.8175,159.34,159.31,20.0]
[1724540350730,15.8175,159.38,159.31,20.0]
[1724540354351,55.88651416,159.37,159.29,20.0]
[1724540354655,10.88651416,159.35,159.26,30.88651416]
[1724540364254,10.88651416,159.35,159.26,20.0]
[1724540364432,10.88651416,159.35,159.27,10.88651416]
[1724540364637,10.88651416,159.35,159.28,20.0]
[1724540368840,16.3388,159.34,159.28,20.0]
[1724540381563,16.3388,159.34,159.29,10.88651416]
[1724540381770,16.3388,159.34,159.3,20.0]